[Event "Titled Tuesday Blitz September 27 Early 2022"]
[White "Prraneeth Vuppala"]
[Black "Ardila, Oscar Humberto"]
[WhiteFideId "46622373"]
[BlackFideId "4404742"]
[WhiteElo "2073"]
[BlackElo "1898"]
[Result "1-0"]
[Round "01"]
[TimeControl "180+1"]
[Date "2022.09.27"]
[WhiteClock "0:01:04"]
[BlackClock "0:00:09"]

1. c4 {[%clk 0:02:59]}  Nf6 {[%clk 0:02:59]} 2. Nc3 {[%clk 0:02:59]}  e6 {[%clk 0:02:59]} 3. Nf3 {[%clk 0:02:54]}  Be7 {[%clk 0:02:57]} 4. e4 {[%clk 0:02:51]}  d6 {[%clk 0:02:43]} 5. d4 {[%clk 0:02:50]}  O-O {[%clk 0:02:05]} 6. h3 {[%clk 0:02:35]}  Nbd7 {[%clk 0:02:03]} 7. Be3 {[%clk 0:02:27]}  e5 {[%clk 0:02:03]} 8. d5 {[%clk 0:02:24]}  Nc5 {[%clk 0:01:58]} 9. Bxc5 {[%clk 0:02:21]}  dxc5 {[%clk 0:01:58]} 10. Nxe5 {[%clk 0:02:21]}  Re8 {[%clk 0:01:56]} 11. Nf3 {[%clk 0:02:17]}  Bd6 {[%clk 0:01:53]} 12. e5 {[%clk 0:02:00]}  Bxe5 {[%clk 0:01:52]} 13. Nxe5 {[%clk 0:02:00]}  Rxe5+ {[%clk 0:01:52]} 14. Be2 {[%clk 0:02:00]}  Qe7 {[%clk 0:01:47]} 15. O-O {[%clk 0:02:00]}  Bd7 {[%clk 0:01:45]} 16. Bf3 {[%clk 0:01:58]}  Re8 {[%clk 0:01:43]} 17. Qd2 {[%clk 0:01:51]}  Bf5 {[%clk 0:01:42]} 18. Qf4 {[%clk 0:01:40]}  Bg6 {[%clk 0:01:39]} 19. a3 {[%clk 0:01:37]}  a6 {[%clk 0:01:38]} 20. b4 {[%clk 0:01:35]}  Rf5 {[%clk 0:01:25]} 21. Qd2 {[%clk 0:01:31]}  Re5 {[%clk 0:01:24]} 22. Na4 {[%clk 0:01:24]}  cxb4 {[%clk 0:01:22]} 23. Qxb4 {[%clk 0:01:25]}  b6 {[%clk 0:01:17]} 24. Qd2 {[%clk 0:01:15]}  Nd7 {[%clk 0:01:14]} 25. Nb2 {[%clk 0:01:13]}  Nc5 {[%clk 0:01:13]} 26. Qf4 {[%clk 0:01:11]}  Rf5 {[%clk 0:01:09]} 27. Qg3 {[%clk 0:01:11]}  Qf6 {[%clk 0:00:36]} 28. Rae1 {[%clk 0:01:06]}  Rxe1 {[%clk 0:00:36]} 29. Rxe1 {[%clk 0:01:06]}  h6 {[%clk 0:00:36]} 30. Nd1 {[%clk 0:01:04]}  Nd3 {[%clk 0:00:30]} 31. Re8+ {[%clk 0:01:04]}  Kh7 {[%clk 0:00:30]} 32. Ne3 {[%clk 0:01:05]}  Re5 {[%clk 0:00:23]} 33. Ng4 {[%clk 0:01:03]}  Rxe8 {[%clk 0:00:17]} 34. Nxf6+ {[%clk 0:01:03]}  gxf6 {[%clk 0:00:17]} 35. Qxc7 {[%clk 0:01:04]}  Re1+ {[%clk 0:00:16]} 36. Kh2 {[%clk 0:01:04]}  Nxf2 {[%clk 0:00:17]} 37. d6 {[%clk 0:01:04]}  Bf5 {[%clk 0:00:10]} 38. d7 {[%clk 0:01:04]}  Bxd7 {[%clk 0:00:10]} 39. Qxd7 {[%clk 0:01:05]}  Rd1 {[%clk 0:00:09]} 40. Qxf7+ {[%clk 0:01:04]}  Kh8 {[%clk 0:00:09]} 41. Qxf6+ {[%clk 0:01:04]} 1-0


[Site "https://www.chess.com"]

[Event "Titled Tuesday Blitz September 27 Early 2022"]
[White "Pultinevicius, Paulius"]
[Black "Urbina Perez, Juan Antonio"]
[WhiteFideId "12809390"]
[BlackFideId "2217368"]
[WhiteElo "2857"]
[BlackElo "2502"]
[Result "1-0"]
[Round "01"]
[TimeControl "180+1"]
[Date "2022.09.27"]
[WhiteClock "0:00:34"]
[BlackClock "0:00:50"]

1. c4 {[%clk 0:02:57]}  c6 {[%clk 0:02:58]} 2. Nf3 {[%clk 0:02:52]}  d5 {[%clk 0:02:59]} 3. g3 {[%clk 0:02:50]}  Nf6 {[%clk 0:02:57]} 4. Bg2 {[%clk 0:02:50]}  Bf5 {[%clk 0:02:57]} 5. O-O {[%clk 0:02:49]}  e6 {[%clk 0:02:57]} 6. cxd5 {[%clk 0:02:45]}  cxd5 {[%clk 0:02:56]} 7. d3 {[%clk 0:02:41]}  Be7 {[%clk 0:02:52]} 8. Nc3 {[%clk 0:02:41]}  O-O {[%clk 0:02:52]} 9. Qb3 {[%clk 0:02:23]}  Qb6 {[%clk 0:02:51]} 10. Qxb6 {[%clk 0:02:20]}  axb6 {[%clk 0:02:51]} 11. Bf4 {[%clk 0:02:07]}  Nc6 {[%clk 0:02:51]} 12. Rfc1 {[%clk 0:02:06]}  h6 {[%clk 0:02:50]} 13. Nb5 {[%clk 0:01:44]}  g5 {[%clk 0:02:40]} 14. Be3 {[%clk 0:01:39]}  Ra5 {[%clk 0:02:27]} 15. Nbd4 {[%clk 0:01:37]}  Bc5 {[%clk 0:02:06]} 16. Nxf5 {[%clk 0:01:29]}  exf5 {[%clk 0:02:06]} 17. Bd2 {[%clk 0:01:21]}  Raa8 {[%clk 0:02:00]} 18. h4 {[%clk 0:01:19]}  g4 {[%clk 0:01:54]} 19. Ne1 {[%clk 0:01:20]}  Kh7 {[%clk 0:01:54]} 20. Bc3 {[%clk 0:01:14]}  d4 {[%clk 0:01:51]} 21. Bd2 {[%clk 0:01:13]}  Rfe8 {[%clk 0:01:48]} 22. Kf1 {[%clk 0:01:06]}  Rac8 {[%clk 0:01:41]} 23. Rc2 {[%clk 0:00:58]}  Nb4 {[%clk 0:01:38]} 24. Bxb4 {[%clk 0:00:58]}  Bxb4 {[%clk 0:01:38]} 25. Rac1 {[%clk 0:00:58]}  Rxc2 {[%clk 0:01:25]} 26. Rxc2 {[%clk 0:00:59]}  Re7 {[%clk 0:01:24]} 27. Rc4 {[%clk 0:00:54]}  Bxe1 {[%clk 0:01:23]} 28. Kxe1 {[%clk 0:00:55]}  Rd7 {[%clk 0:01:23]} 29. Rb4 {[%clk 0:00:56]}  Rd6 {[%clk 0:01:18]} 30. Bxb7 {[%clk 0:00:56]}  Nd7 {[%clk 0:01:15]} 31. Bc8 {[%clk 0:00:53]}  Nc5 {[%clk 0:01:06]} 32. Bxf5+ {[%clk 0:00:53]}  Kg7 {[%clk 0:01:07]} 33. Bxg4 {[%clk 0:00:54]}  Kg6 {[%clk 0:01:05]} 34. Kd2 {[%clk 0:00:50]}  f5 {[%clk 0:01:05]} 35. Bf3 {[%clk 0:00:50]}  f4 {[%clk 0:01:03]} 36. g4 {[%clk 0:00:42]}  Kf6 {[%clk 0:01:02]} 37. Rc4 {[%clk 0:00:41]}  Nd7 {[%clk 0:00:51]} 38. Rc6 {[%clk 0:00:34]}  Rxc6 {[%clk 0:00:49]} 39. Bxc6 {[%clk 0:00:35]}  Ke5 {[%clk 0:00:50]} 40. Bxd7 {[%clk 0:00:34]} 1-0


[Site "https://www.chess.com"]

[Event "Titled Tuesday Blitz September 27 Early 2022"]
[White "Rama, Tejas"]
[Black "Kvon, Andrey"]
[WhiteFideId "30907381"]
[BlackFideId "14201356"]
[WhiteElo "1513"]
[BlackElo "2458"]
[Result "0-1"]
[Round "01"]
[TimeControl "180+1"]
[Date "2022.09.27"]
[WhiteClock "0:00:02"]
[BlackClock "0:00:50"]

1. d4 {[%clk 0:03:00]}  f5 {[%clk 0:02:58]} 2. c4 {[%clk 0:03:00]}  e6 {[%clk 0:02:59]} 3. g3 {[%clk 0:03:00]}  Nf6 {[%clk 0:02:59]} 4. Bg2 {[%clk 0:03:01]}  c6 {[%clk 0:03:00]} 5. Nf3 {[%clk 0:03:01]}  d5 {[%clk 0:03:01]} 6. O-O {[%clk 0:03:01]}  b6 {[%clk 0:03:00]} 7. b3 {[%clk 0:03:01]}  Ba6 {[%clk 0:03:00]} 8. Qc2 {[%clk 0:02:51]}  Bd6 {[%clk 0:03:00]} 9. Ba3 {[%clk 0:02:50]}  Qe7 {[%clk 0:02:57]} 10. Bxd6 {[%clk 0:02:49]}  Qxd6 {[%clk 0:02:58]} 11. Rd1 {[%clk 0:02:26]}  Nbd7 {[%clk 0:02:57]} 12. Nbd2 {[%clk 0:02:00]}  Ke7 {[%clk 0:02:57]} 13. e3 {[%clk 0:01:38]}  Rhc8 {[%clk 0:02:51]} 14. Qb2 {[%clk 0:01:34]}  Bb7 {[%clk 0:02:43]} 15. Ne5 {[%clk 0:01:25]}  a5 {[%clk 0:02:43]} 16. a3 {[%clk 0:01:22]}  b5 {[%clk 0:02:31]} 17. c5 {[%clk 0:01:12]}  Qc7 {[%clk 0:02:29]} 18. Ndf3 {[%clk 0:01:08]}  Nf8 {[%clk 0:02:28]} 19. b4 {[%clk 0:01:05]}  axb4 {[%clk 0:02:11]} 20. axb4 {[%clk 0:01:06]}  Qd8 {[%clk 0:02:10]} 21. Ng5 {[%clk 0:00:55]}  Rxa1 {[%clk 0:02:02]} 22. Rxa1 {[%clk 0:00:53]}  Ra8 {[%clk 0:02:02]} 23. Ngf7 {[%clk 0:00:48]}  Rxa1+ {[%clk 0:02:02]} 24. Qxa1 {[%clk 0:00:48]}  Qa8 {[%clk 0:02:03]} 25. Qxa8 {[%clk 0:00:46]}  Bxa8 {[%clk 0:02:04]} 26. Nd6 {[%clk 0:00:43]}  N8d7 {[%clk 0:02:02]} 27. Nxd7 {[%clk 0:00:35]}  Nxd7 {[%clk 0:01:59]} 28. Kf1 {[%clk 0:00:33]}  Nb8 {[%clk 0:01:58]} 29. Ke2 {[%clk 0:00:17]}  Na6 {[%clk 0:01:58]} 30. Kd2 {[%clk 0:00:18]}  Nxb4 {[%clk 0:01:58]} 31. Kc3 {[%clk 0:00:18]}  Na6 {[%clk 0:01:57]} 32. f3 {[%clk 0:00:18]}  Kd7 {[%clk 0:01:53]} 33. e4 {[%clk 0:00:18]}  dxe4 {[%clk 0:01:39]} 34. fxe4 {[%clk 0:00:19]}  g6 {[%clk 0:01:39]} 35. h4 {[%clk 0:00:13]}  Kc7 {[%clk 0:01:34]} 36. e5 {[%clk 0:00:12]}  Bb7 {[%clk 0:01:33]} 37. Bf1 {[%clk 0:00:09]}  Bc8 {[%clk 0:01:31]} 38. Be2 {[%clk 0:00:07]}  Bd7 {[%clk 0:01:31]} 39. g4 {[%clk 0:00:07]}  Kd8 {[%clk 0:01:30]} 40. g5 {[%clk 0:00:06]}  Nc7 {[%clk 0:01:28]} 41. Bf3 {[%clk 0:00:06]}  Na6 {[%clk 0:01:28]} 42. Kb3 {[%clk 0:00:05]}  Ke7 {[%clk 0:01:28]} 43. Be2 {[%clk 0:00:03]}  Nc7 {[%clk 0:01:21]} 44. Bf3 {[%clk 0:00:03]}  Nd5 {[%clk 0:01:21]} 45. Kc2 {[%clk 0:00:02]}  Nb4+ {[%clk 0:01:08]} 46. Kc3 {[%clk 0:00:02]}  Nd5+ {[%clk 0:01:08]} 47. Kc2 {[%clk 0:00:03]}  Kf8 {[%clk 0:01:06]} 48. Nb7 {[%clk 0:00:03]}  Kg7 {[%clk 0:01:04]} 49. Na5 {[%clk 0:00:03]}  h6 {[%clk 0:01:02]} 50. Bxd5 {[%clk 0:00:02]}  exd5 {[%clk 0:01:01]} 51. Nb3 {[%clk 0:00:03]}  hxg5 {[%clk 0:00:58]} 52. hxg5 {[%clk 0:00:04]}  f4 {[%clk 0:00:56]} 53. Kd2 {[%clk 0:00:04]}  Bg4 {[%clk 0:00:53]} 54. Kc2 {[%clk 0:00:04]}  Kf7 {[%clk 0:00:53]} 55. Kd2 {[%clk 0:00:04]}  Ke6 {[%clk 0:00:52]} 56. Na5 {[%clk 0:00:05]}  Kd7 {[%clk 0:00:53]} 57. Ke1 {[%clk 0:00:03]}  Bf3 {[%clk 0:00:50]} 58. Nb3 {[%clk 0:00:03]}  Be4 {[%clk 0:00:50]} 59. Nc1 {[%clk 0:00:03]}  b4 {[%clk 0:00:50]} 60. Nb3 {[%clk 0:00:01]}  Bc2 {[%clk 0:00:49]} 61. Na5 {[%clk 0:00:02]}  b3 {[%clk 0:00:50]} 62. Kd2 {[%clk 0:00:02]}  f3 {[%clk 0:00:50]} 0-1


[Site "https://www.chess.com"]

[Event "Titled Tuesday Blitz September 27 Early 2022"]
[White "Rangel, Daniel"]
[Black "Ahmadzada, Ahmad"]
[WhiteFideId "2124475"]
[BlackFideId "13413007"]
[WhiteElo "2225"]
[BlackElo "2185"]
[Result "0-1"]
[Round "01"]
[TimeControl "180+1"]
[Date "2022.09.27"]
[WhiteClock "0:01:15"]
[BlackClock "0:01:18"]

1. c4 {[%clk 0:03:00]}  Nf6 {[%clk 0:02:59]} 2. g3 {[%clk 0:03:01]}  g6 {[%clk 0:02:58]} 3. Bg2 {[%clk 0:03:02]}  Bg7 {[%clk 0:02:58]} 4. Nc3 {[%clk 0:03:02]}  O-O {[%clk 0:02:59]} 5. e3 {[%clk 0:03:01]}  d6 {[%clk 0:02:57]} 6. Nge2 {[%clk 0:03:01]}  c5 {[%clk 0:02:57]} 7. O-O {[%clk 0:02:57]}  Nc6 {[%clk 0:02:58]} 8. d3 {[%clk 0:02:56]}  Bd7 {[%clk 0:02:58]} 9. a3 {[%clk 0:02:57]}  Qc8 {[%clk 0:02:58]} 10. Rb1 {[%clk 0:02:56]}  Bh3 {[%clk 0:02:58]} 11. b4 {[%clk 0:02:56]}  Bxg2 {[%clk 0:02:56]} 12. Kxg2 {[%clk 0:02:57]}  b6 {[%clk 0:02:56]} 13. b5 {[%clk 0:02:45]}  Ne5 {[%clk 0:02:53]} 14. h3 {[%clk 0:02:41]}  e6 {[%clk 0:02:50]} 15. f4 {[%clk 0:02:39]}  Ned7 {[%clk 0:02:48]} 16. e4 {[%clk 0:02:34]}  Qb7 {[%clk 0:02:46]} 17. Kh2 {[%clk 0:02:32]}  Rad8 {[%clk 0:02:45]} 18. Be3 {[%clk 0:02:31]}  d5 {[%clk 0:02:43]} 19. cxd5 {[%clk 0:02:26]}  exd5 {[%clk 0:02:43]} 20. e5 {[%clk 0:02:26]}  d4 {[%clk 0:02:43]} 21. exf6 {[%clk 0:02:19]}  Nxf6 {[%clk 0:02:43]} 22. Bd2 {[%clk 0:02:13]}  dxc3 {[%clk 0:02:42]} 23. Bxc3 {[%clk 0:02:14]}  Rfe8 {[%clk 0:02:41]} 24. Ng1 {[%clk 0:02:08]}  c4 {[%clk 0:02:30]} 25. Qf3 {[%clk 0:01:56]}  Qxf3 {[%clk 0:01:58]} 26. Rxf3 {[%clk 0:01:57]}  Rxd3 {[%clk 0:01:56]} 27. Rxd3 {[%clk 0:01:55]}  cxd3 {[%clk 0:01:56]} 28. Rd1 {[%clk 0:01:50]}  Rd8 {[%clk 0:01:42]} 29. Be5 {[%clk 0:01:45]}  Ne4 {[%clk 0:01:40]} 30. Nf3 {[%clk 0:01:40]}  Bxe5 {[%clk 0:01:35]} 31. Nxe5 {[%clk 0:01:38]}  d2 {[%clk 0:01:33]} 32. Nf3 {[%clk 0:01:37]}  Rc8 {[%clk 0:01:31]} 33. Nxd2 {[%clk 0:01:10]}  Rc2 {[%clk 0:01:28]} 34. h4 {[%clk 0:01:05]}  Rxd2+ {[%clk 0:01:28]} 35. Rxd2 {[%clk 0:01:05]}  Nxd2 {[%clk 0:01:29]} 36. Kg2 {[%clk 0:01:06]}  Nc4 {[%clk 0:01:28]} 37. a4 {[%clk 0:01:07]}  Nb2 {[%clk 0:01:28]} 38. Kf3 {[%clk 0:01:07]}  Nxa4 {[%clk 0:01:29]} 39. Ke4 {[%clk 0:01:08]}  Nc3+ {[%clk 0:01:29]} 40. Kd4 {[%clk 0:01:08]}  Nxb5+ {[%clk 0:01:30]} 41. Kc4 {[%clk 0:01:08]}  Nd6+ {[%clk 0:01:29]} 42. Kd5 {[%clk 0:01:09]}  Nf5 {[%clk 0:01:30]} 43. g4 {[%clk 0:01:09]}  Nxh4 {[%clk 0:01:30]} 44. g5 {[%clk 0:01:10]}  Ng2 {[%clk 0:01:28]} 45. Kc6 {[%clk 0:01:11]}  Nxf4 {[%clk 0:01:27]} 46. Kb5 {[%clk 0:01:12]}  Ne6 {[%clk 0:01:27]} 47. Ka6 {[%clk 0:01:06]}  Nxg5 {[%clk 0:01:28]} 48. Kxa7 {[%clk 0:01:07]}  h5 {[%clk 0:01:28]} 49. Kxb6 {[%clk 0:01:07]}  h4 {[%clk 0:01:29]} 50. Kc5 {[%clk 0:01:08]}  h3 {[%clk 0:01:29]} 51. Kd4 {[%clk 0:01:09]}  h2 {[%clk 0:01:30]} 52. Ke5 {[%clk 0:01:10]}  h1=Q {[%clk 0:01:30]} 53. Kf6 {[%clk 0:01:10]}  Ne6 {[%clk 0:01:26]} 54. Ke7 {[%clk 0:01:11]}  g5 {[%clk 0:01:26]} 55. Kf6 {[%clk 0:01:12]}  g4 {[%clk 0:01:26]} 56. Kf5 {[%clk 0:01:13]}  g3 {[%clk 0:01:27]} 57. Kf6 {[%clk 0:01:14]}  g2 {[%clk 0:01:27]} 58. Ke7 {[%clk 0:01:15]}  g1=Q {[%clk 0:01:27]} 59. Kf6 {[%clk 0:01:16]}  Qg6+ {[%clk 0:01:25]} 60. Ke7 {[%clk 0:01:17]}  f5 {[%clk 0:01:25]} 61. Kd6 {[%clk 0:01:16]}  f4 {[%clk 0:01:26]} 62. Ke5 {[%clk 0:01:17]}  f3 {[%clk 0:01:26]} 63. Kd6 {[%clk 0:01:18]}  f2 {[%clk 0:01:26]} 64. Ke5 {[%clk 0:01:19]}  f1=Q {[%clk 0:01:26]} 65. Kd6 {[%clk 0:01:20]}  Nd4+ {[%clk 0:01:25]} 66. Ke7 {[%clk 0:01:20]}  Qff6+ {[%clk 0:01:24]} 67. Kd7 {[%clk 0:01:19]}  Qe6+ {[%clk 0:01:24]} 68. Kc7 {[%clk 0:01:19]}  Qd6+ {[%clk 0:01:23]} 69. Kc8 {[%clk 0:01:17]}  Qh3+ {[%clk 0:01:22]} 70. Kb7 {[%clk 0:01:16]}  Qg7+ {[%clk 0:01:21]} 71. Ka8 {[%clk 0:01:16]}  Qa6+ {[%clk 0:01:17]} 72. Kb8 {[%clk 0:01:15]}  Nc6# {[%clk 0:01:18]} 0-1


[Site "https://www.chess.com"]

[Event "Titled Tuesday Blitz September 27 Early 2022"]
[White "Ravi, Teja S."]
[Black "Lorenzo De La Riva, Lazaro"]
[WhiteFideId "5017220"]
[BlackFideId "2268809"]
[WhiteElo "2432"]
[BlackElo "2325"]
[Result "1-0"]
[Round "01"]
[TimeControl "180+1"]
[Date "2022.09.27"]
[WhiteClock "0:01:42"]
[BlackClock "0:00:16"]

1. Nf3 {[%clk 0:02:55]}  Nf6 {[%clk 0:02:57]} 2. d4 {[%clk 0:02:55]}  d5 {[%clk 0:02:56]} 3. Bf4 {[%clk 0:02:56]}  c5 {[%clk 0:02:55]} 4. e3 {[%clk 0:02:56]}  Nc6 {[%clk 0:02:55]} 5. Nbd2 {[%clk 0:02:56]}  Bf5 {[%clk 0:02:47]} 6. dxc5 {[%clk 0:02:52]}  e6 {[%clk 0:02:36]} 7. Nb3 {[%clk 0:02:53]}  Be7 {[%clk 0:02:18]} 8. Nfd4 {[%clk 0:02:49]}  Bg6 {[%clk 0:02:12]} 9. Bb5 {[%clk 0:02:46]}  Rc8 {[%clk 0:02:06]} 10. Nxc6 {[%clk 0:02:45]}  bxc6 {[%clk 0:02:07]} 11. Ba6 {[%clk 0:02:46]}  O-O {[%clk 0:02:04]} 12. Bxc8 {[%clk 0:02:46]}  Qxc8 {[%clk 0:02:05]} 13. O-O {[%clk 0:02:47]}  Nd7 {[%clk 0:01:54]} 14. Bd6 {[%clk 0:02:29]}  Bxd6 {[%clk 0:01:49]} 15. cxd6 {[%clk 0:02:30]}  Qb8 {[%clk 0:01:50]} 16. Qd4 {[%clk 0:02:30]}  Bxc2 {[%clk 0:01:28]} 17. Rfc1 {[%clk 0:02:27]}  Bxb3 {[%clk 0:01:28]} 18. axb3 {[%clk 0:02:28]}  c5 {[%clk 0:01:26]} 19. Qa4 {[%clk 0:02:14]}  Qxd6 {[%clk 0:01:23]} 20. Qxa7 {[%clk 0:02:14]}  h6 {[%clk 0:01:13]} 21. Ra6 {[%clk 0:02:11]}  Qe7 {[%clk 0:01:06]} 22. Qc7 {[%clk 0:02:10]}  Qd8 {[%clk 0:00:59]} 23. Qxd8 {[%clk 0:02:05]}  Rxd8 {[%clk 0:01:00]} 24. Rd6 {[%clk 0:02:06]}  Kf8 {[%clk 0:00:58]} 25. Rxc5 {[%clk 0:02:06]}  Ke7 {[%clk 0:00:56]} 26. Rcc6 {[%clk 0:02:07]}  Rb8 {[%clk 0:00:53]} 27. e4 {[%clk 0:01:54]}  Rxb3 {[%clk 0:00:34]} 28. exd5 {[%clk 0:01:52]}  Rxb2 {[%clk 0:00:35]} 29. h3 {[%clk 0:01:51]}  Ne5 {[%clk 0:00:25]} 30. Ra6 {[%clk 0:01:45]}  Nc4 {[%clk 0:00:23]} 31. Rdc6 {[%clk 0:01:43]}  exd5 {[%clk 0:00:23]} 32. Rc7+ {[%clk 0:01:43]}  Kd8 {[%clk 0:00:22]} 33. Rxf7 {[%clk 0:01:43]}  Nd6 {[%clk 0:00:16]} 34. Rxd6+ {[%clk 0:01:42]} 1-0


[Site "https://www.chess.com"]

[Event "Titled Tuesday Blitz September 27 Early 2022"]
[White "Ravi, Thandalam Shanmugam"]
[Black "Mirzoev, Azer"]
[WhiteFideId "5000238"]
[BlackFideId "13400304"]
[WhiteElo "2063"]
[BlackElo "2525"]
[Result "0-1"]
[Round "01"]
[TimeControl "180+1"]
[Date "2022.09.27"]
[WhiteClock "0:00:21"]
[BlackClock "0:00:25"]

1. e4 {[%clk 0:02:59]}  Nc6 {[%clk 0:03:00]} 2. Nf3 {[%clk 0:02:56]}  e5 {[%clk 0:02:58]} 3. Bb5 {[%clk 0:02:55]}  a6 {[%clk 0:02:56]} 4. Ba4 {[%clk 0:02:53]}  Nge7 {[%clk 0:02:56]} 5. O-O {[%clk 0:02:33]}  Ng6 {[%clk 0:02:54]} 6. d4 {[%clk 0:02:25]}  exd4 {[%clk 0:02:41]} 7. Nxd4 {[%clk 0:02:12]}  Nxd4 {[%clk 0:02:39]} 8. Qxd4 {[%clk 0:02:12]}  b5 {[%clk 0:02:38]} 9. Bb3 {[%clk 0:02:10]}  Bb7 {[%clk 0:02:38]} 10. Qe3 {[%clk 0:02:05]}  Be7 {[%clk 0:02:29]} 11. Nc3 {[%clk 0:02:05]}  O-O {[%clk 0:02:28]} 12. Nd5 {[%clk 0:01:59]}  Re8 {[%clk 0:02:14]} 13. Qe2 {[%clk 0:01:50]}  Bc5 {[%clk 0:01:56]} 14. Be3 {[%clk 0:01:47]}  Bxe3 {[%clk 0:01:44]} 15. Qxe3 {[%clk 0:01:44]}  d6 {[%clk 0:01:40]} 16. Rfe1 {[%clk 0:01:33]}  Ne5 {[%clk 0:01:35]} 17. f4 {[%clk 0:01:30]}  Nd7 {[%clk 0:01:34]} 18. Qg3 {[%clk 0:01:20]}  Nc5 {[%clk 0:01:29]} 19. c3 {[%clk 0:01:15]}  Rxe4 {[%clk 0:01:19]} 20. Rxe4 {[%clk 0:01:10]}  Nxe4 {[%clk 0:01:19]} 21. Qd3 {[%clk 0:01:09]}  Nf6 {[%clk 0:01:16]} 22. Ne3 {[%clk 0:01:02]}  Qe8 {[%clk 0:01:04]} 23. Re1 {[%clk 0:01:01]}  Qe4 {[%clk 0:00:59]} 24. Qd2 {[%clk 0:01:00]}  Qxf4 {[%clk 0:00:57]} 25. Rf1 {[%clk 0:00:58]}  Qg5 {[%clk 0:00:56]} 26. Rf5 {[%clk 0:00:57]}  Qh6 {[%clk 0:00:55]} 27. Qf2 {[%clk 0:00:50]}  Re8 {[%clk 0:00:52]} 28. Nf1 {[%clk 0:00:34]}  c5 {[%clk 0:00:40]} 29. h3 {[%clk 0:00:32]}  c4 {[%clk 0:00:39]} 30. Bc2 {[%clk 0:00:32]}  Be4 {[%clk 0:00:33]} 31. Bxe4 {[%clk 0:00:25]}  Nxe4 {[%clk 0:00:33]} 32. Qd4 {[%clk 0:00:25]}  Nc5 {[%clk 0:00:25]} 33. Qxd6 {[%clk 0:00:21]}  Qxd6 {[%clk 0:00:25]} 0-1


[Site "https://www.chess.com"]

[Event "Titled Tuesday Blitz September 27 Early 2022"]
[White "Rios Escobar, Adan"]
[Black "Burmakin, Vladimir"]
[WhiteFideId "3403645"]
[BlackFideId "4105109"]
[WhiteElo "2329"]
[BlackElo "2513"]
[Result "0-1"]
[Round "01"]
[TimeControl "180+1"]
[Date "2022.09.27"]
[WhiteClock "0:00:02"]
[BlackClock "0:00:49"]

1. d4 {[%clk 0:02:56]}  Nf6 {[%clk 0:02:58]} 2. g3 {[%clk 0:02:55]}  d5 {[%clk 0:02:57]} 3. Nf3 {[%clk 0:02:53]}  c6 {[%clk 0:02:57]} 4. c4 {[%clk 0:02:52]}  Bf5 {[%clk 0:02:57]} 5. Nc3 {[%clk 0:02:52]}  e6 {[%clk 0:02:57]} 6. Nh4 {[%clk 0:02:53]}  Be4 {[%clk 0:02:54]} 7. f3 {[%clk 0:02:52]}  Bg6 {[%clk 0:02:54]} 8. Qb3 {[%clk 0:02:52]}  Qc8 {[%clk 0:02:52]} 9. Nxg6 {[%clk 0:02:11]}  hxg6 {[%clk 0:02:51]} 10. Bg5 {[%clk 0:02:06]}  Nbd7 {[%clk 0:02:49]} 11. e4 {[%clk 0:01:53]}  dxe4 {[%clk 0:02:49]} 12. fxe4 {[%clk 0:01:53]}  e5 {[%clk 0:02:49]} 13. O-O-O {[%clk 0:01:29]}  exd4 {[%clk 0:02:47]} 14. Rxd4 {[%clk 0:01:29]}  Bc5 {[%clk 0:02:46]} 15. Rd1 {[%clk 0:01:27]}  O-O {[%clk 0:02:43]} 16. Kb1 {[%clk 0:01:23]}  Ne5 {[%clk 0:02:39]} 17. Be2 {[%clk 0:01:15]}  Nfg4 {[%clk 0:02:37]} 18. Na4 {[%clk 0:01:05]}  b6 {[%clk 0:02:16]} 19. Nxc5 {[%clk 0:01:05]}  bxc5 {[%clk 0:02:16]} 20. Rd6 {[%clk 0:00:48]}  Nf2 {[%clk 0:02:05]} 21. Rhd1 {[%clk 0:00:38]}  Nxe4 {[%clk 0:02:04]} 22. Qe3 {[%clk 0:00:14]}  Nxd6 {[%clk 0:01:40]} 23. Rxd6 {[%clk 0:00:15]}  Qf5+ {[%clk 0:01:38]} 24. Ka1 {[%clk 0:00:14]}  Rfe8 {[%clk 0:01:33]} 25. Qd2 {[%clk 0:00:10]}  Nf3 {[%clk 0:01:23]} 26. Bxf3 {[%clk 0:00:10]}  Qxf3 {[%clk 0:01:23]} 27. a3 {[%clk 0:00:10]}  Rab8 {[%clk 0:01:15]} 28. Qd1 {[%clk 0:00:08]}  Qxd1+ {[%clk 0:01:14]} 29. Rxd1 {[%clk 0:00:09]}  Re2 {[%clk 0:01:13]} 30. Bc1 {[%clk 0:00:08]}  Rbe8 {[%clk 0:01:10]} 31. Rd6 {[%clk 0:00:06]}  Rxh2 {[%clk 0:01:02]} 32. Rxc6 {[%clk 0:00:05]}  Re1 {[%clk 0:01:02]} 33. Rc8+ {[%clk 0:00:01]}  Kh7 {[%clk 0:01:01]} 34. Rxc5 {[%clk 0:00:02]}  Rxc1+ {[%clk 0:01:00]} 35. Ka2 {[%clk 0:00:03]}  Rcc2 {[%clk 0:00:58]} 36. Rb5 {[%clk 0:00:04]}  Rxc4 {[%clk 0:00:57]} 37. Rb3 {[%clk 0:00:02]}  f5 {[%clk 0:00:56]} 38. Kb1 {[%clk 0:00:01]}  a5 {[%clk 0:00:55]} 39. Ka2 {[%clk 0:00:02]}  a4 {[%clk 0:00:55]} 40. Rb6 {[%clk 0:00:03]}  Rg4 {[%clk 0:00:54]} 41. Rb7 {[%clk 0:00:04]}  Rg2 {[%clk 0:00:54]} 42. Rb6 {[%clk 0:00:04]}  R2xg3 {[%clk 0:00:54]} 43. Rb7 {[%clk 0:00:04]}  f4 {[%clk 0:00:53]} 44. Rb6 {[%clk 0:00:03]}  f3 {[%clk 0:00:53]} 45. Rb7 {[%clk 0:00:03]}  f2 {[%clk 0:00:52]} 46. b4 {[%clk 0:00:03]}  f1=Q {[%clk 0:00:50]} 47. Rb8 {[%clk 0:00:02]}  Rg2# {[%clk 0:00:49]} 0-1


[Site "https://www.chess.com"]